bitfinex/quotes_ETHUSD_20241212
["timestamp","ask_amount","ask_price","bid_price","bid_amount"]
[1733974646530,2.55631,3911.9,3910.7,3.61031416]
[1733974646959,0.02985197,3911.8,3910.7,2.61031416]
[1733974647370,0.7808,3912.2,3910.8,3.0]
[1733974647552,0.23787887,3912.1,3910.8,3.0]
[1733974647747,0.23787887,3912.0,3910.8,3.7671]
[1733974647953,0.02966295,3912.0,3910.9,0.76707]
[1733974648751,0.02966295,3912.0,3911.0,0.76706]
[1733974648952,0.02966295,3912.0,3911.3,3.0]
[1733974649179,0.02966295,3912.0,3911.7,0.76692]
[1733974649340,0.7808,3912.6,3911.7,0.76692]
[1733974649538,0.02953368,3911.9,3911.7,0.76692]
[1733974649731,0.7808,3912.6,3911.4,0.8065]
[1733974649941,0.7808,3912.6,3911.5,0.76696]
[1733974650261,0.02961305,3912.5,3911.5,0.76696]
[1733974650866,0.02961305,3912.5,3911.3,3.0]
[1733974650867,0.06156297,3912.5,3911.3,3.0]
[1733974651065,3.5748863,3912.4,3911.0,0.76706]
[1733974651384,2.55625,3912.0,3910.7,4.37741416]
[1733974651537,0.7808,3912.2,3910.8,0.7671]
[1733974651741,0.02976022,3911.9,3910.7,3.61031416]
[1733974651977,0.23812889,3912.1,3910.8,0.7671]
[1733974651978,0.02978667,3912.1,3910.8,0.7671]
[1733974652223,0.7808,3912.2,3910.8,0.7671]
[1733974652224,0.02974699,3911.8,3910.8,2.9562863]
[1733974652433,0.02977345,3912.0,3910.8,0.7671]
[1733974652584,3.33694,3912.2,3910.8,3.7671]
[1733974652781,3.33694,3912.2,3911.0,0.76706]
[1733974652782,0.02961658,3911.9,3911.0,0.76706]
[1733974652984,0.02964304,3912.1,3911.0,0.76706]
[1733974653220,3.33693,3912.2,3910.8,3.0]
[1733974653506,0.60146147,3912.1,3910.8,3.0]
[1733974653716,0.23812543,3912.0,3910.8,3.76709]
[1733974653891,0.02958008,3912.0,3910.9,0.76707]
[1733974654311,0.333693,3912.1,3910.9,0.76707]
[1733974654707,0.02970716,3912.0,3910.9,0.76707]
[1733974654912,0.02970716,3912.0,3911.2,4.41681416]
[1733974655111,0.7808,3912.6,3911.8,3.0]
[1733974655310,0.7808,3912.6,3912.1,0.76684]
[1733974655510,2.55516,3913.7,3912.3,0.7668]
[1733974655511,0.7808,3913.5,3912.3,0.7668]
[1733974655793,0.02771608,3912.5,3912.3,0.7668]
[1733974655992,0.7808,3913.5,3912.4,0.02555658]
[1733974656327,0.7808,3913.5,3912.2,4.41681416]
[1733974656328,0.7808,3913.5,3912.5,0.76676]
[1733974656541,0.02823836,3913.4,3912.7,0.76672]
[1733974656742,0.7808,3913.5,3912.7,0.76672]
[1733974656905,0.7808,3913.5,3912.3,4.05941968]
[1733974657107,0.7808,3913.5,3913.1,0.76664]
[1733974657937,2.55452,3914.7,3913.2,0.76663]
[1733974658138,2.55452,3914.7,3912.7,1.58912953]
[1733974658139,0.49350821,3914.6,3912.8,1.05941968]
[1733974658436,1.16894615,3914.5,3912.6,0.76673]
[1733974658642,2.55493,3914.0,3912.7,0.87721688]
[1733974658839,0.23805621,3913.9,3912.7,0.87721688]
[1733974658992,0.23805621,3913.9,3912.4,4.05941968]
[1733974658993,2.55518,3913.7,3912.4,1.05941968]
[1733974659193,0.23805621,3913.6,3912.4,2.95992735]
[1733974659430,0.23805621,3913.5,3912.5,2.19506248]
[1733974659614,2.5549,3914.1,3912.7,0.76672]
[1733974659823,0.87453419,3914.0,3912.8,0.87802499]
[1733974660018,0.61904419,3913.9,3912.8,0.87802499]
[1733974660227,0.65098667,3913.8,3912.4,1.82619968]
[1733974660401,0.65098667,3913.8,3912.5,3.25447194]
[1733974660402,3.17417493,3913.7,3912.5,3.25447194]
[1733974660604,0.23809392,3913.6,3912.6,1.05941968]
[1733974660806,0.7808,3913.4,3912.7,0.76673]
[1733974661004,0.7808,3913.4,3912.8,2.19505226]
[1733974661498,0.7808,3913.4,3912.9,2.19505226]
[1733974661698,0.7808,3913.4,3913.0,2.19505226]
[1733974661893,0.7808,3913.4,3913.1,0.8780209]
[1733974662131,0.7308,3913.4,3912.9,1.05941968]
[1733974662535,0.7308,3913.4,3913.1,1.05941968]
[1733974662723,0.7308,3913.4,3913.2,2.1994216]
[1733974662927,0.7308,3913.4,3913.3,0.87976864]
[1733974663421,0.75964596,3913.4,3913.0,1.05941968]
[1733974663594,0.75964596,3913.4,3912.9,1.05941968]
[1733974663798,0.75964596,3913.4,3913.0,3.2609942]
[1733974664009,0.75964596,3913.4,3913.1,2.20157452]
[1733974664209,0.23812176,3913.3,3912.9,1.05941968]
[1733974664415,0.23812176,3913.3,3912.4,0.76678]
[1733974664416,0.7308,3913.4,3913.0,3.26210658]
[1733974664597,0.02883058,3913.2,3913.1,2.2026869]
[1733974664798,1.09749166,3913.4,3913.1,0.88107476]
[1733974665035,0.23814274,3913.3,3913.2,0.88107476]
[1733974665338,0.23814274,3913.3,3913.0,1.05941968]
[1733974665526,1.09749166,3913.4,3913.0,1.94049444]
[1733974665724,1.09749166,3913.4,3913.2,1.05941968]
[1733974665725,0.7308,3913.4,3913.2,1.05941968]
[1733974665925,0.7308,3913.4,3913.3,0.88107476]
[1733974666099,0.7308,3913.4,3913.3,5.5554116]
[1733974666299,0.7308,3913.4,3913.3,2.47020429]
[1733974666500,0.7308,3913.4,3913.3,3.79237736]
[1733974666726,0.7308,3913.4,3913.3,2.47020429]
[1733974667081,0.7308,3913.4,3913.3,2.47057849]
[1733974667343,0.7308,3913.4,3913.3,2.20362241]
[1733974667510,0.7308,3913.4,3913.3,0.88144896]
[1733974667694,0.7308,3913.4,3913.3,4.55936194]
[1733974667904,1.39044438,3914.5,3913.3,6.85203374]
[1733974668200,1.39044438,3914.5,3913.2,2.66500065]
[1733974668201,0.75827126,3914.4,3913.7,1.06597894]
[1733974668430,0.75827126,3914.4,3913.8,3.26960135]
[1733974668431,0.23816416,3914.3,3913.8,3.26960135]
[1733974668738,0.7712,3914.5,3913.9,3.26960135]
[1733974668925,0.23809195,3914.4,3914.0,2.20362241]
[1733974669240,0.7712,3914.5,3914.1,0.88144896]
[1733974669411,0.23801764,3914.4,3913.9,1.06597894]
[1733974669741,0.7712,3914.5,3914.0,1.3216841]
[1733974669941,0.7712,3914.5,3913.9,1.06597894]
[1733974669942,0.23801781,3914.4,3914.1,2.20280652]
[1733974670140,0.7712,3914.5,3913.9,1.06597894]
[1733974670436,0.7712,3914.5,3914.0,1.32150167]
[1733974670645,0.23795184,3914.4,3914.1,0.88100111]
[1733974670867,1.103772,3914.5,3913.8,1.06597894]
[1733974671073,0.02779916,3914.3,3913.9,1.32158363]
[1733974671255,3.32582,3914.5,3914.0,0.88117402]
[1733974671455,0.02778595,3914.2,3913.7,1.06597894]
[1733974671769,3.32582,3914.5,3913.8,1.32166643]
[1733974671972,0.23791623,3914.4,3913.9,2.20273753]
[1733974672267,0.42225838,3914.4,3914.0,0.88109501]
[1733974672475,0.42225838,3914.4,3913.7,1.06597894]
[1733974672660,0.42225838,3914.4,3913.8,1.32188659]
[1733974672971,0.42225838,3914.4,3913.9,2.20314432]
[1733974673189,0.42225838,3914.4,3914.0,0.88125773]
[1733974673391,2.97692838,3914.4,3913.8,1.06597894]
[1733974673680,0.42225838,3914.4,3913.9,2.20345821]
[1733974673895,0.02781238,3914.4,3914.0,0.88138328]
[1733974674034,0.02781238,3914.4,3913.8,1.06597894]
[1733974674232,0.02781238,3914.4,3913.9,1.32205004]
[1733974674615,3.32582,3914.5,3914.0,0.88136669]
[1733974674796,0.7712,3914.5,3913.7,1.06597894]
[1733974674934,0.7712,3914.5,3913.8,1.32208248]
[1733974674935,2.55473,3914.3,3913.8,1.32208248]
[1733974675133,2.55473,3914.3,3913.9,0.88138832]
[1733974675333,0.02778595,3914.2,3913.7,1.06597894]
[1733974675932,3.32581,3914.5,3913.7,1.06597894]
[1733974676240,2.55468,3914.4,3913.7,1.06597894]
[1733974676433,2.58249238,3914.4,3913.8,2.20367906]
[1733974676667,2.58249238,3914.4,3913.9,0.88147162]
[1733974676870,2.58249238,3914.4,3913.6,1.06597894]
[1733974677450,2.55468,3914.4,3913.6,1.06597894]
[1733974677652,2.55468,3914.4,3913.7,3.26974142]
[1733974677869,0.7712,3914.5,3913.8,2.20376248]
[1733974678071,0.7712,3914.5,3913.9,2.20376248]
[1733974678072,0.02779916,3914.3,3913.9,2.20376248]
[1733974678272,0.02781238,3914.4,3914.0,0.88150499]
[1733974678585,0.7712,3914.5,3913.8,1.06597894]
[1733974678787,0.02779916,3914.3,3913.9,1.32191107]
[1733974678934,0.7712,3914.5,3914.0,2.20317771]
[1733974679135,0.7712,3914.5,3913.5,2.11883937]
[1733974679136,0.02782458,3914.2,3913.7,0.99107894]
[1733974679345,2.55474,3914.3,3913.1,6.27424467]
[1733974679346,2.55474,3914.3,3913.8,0.88124831]
[1733974679545,0.02781137,3914.1,3913.4,1.59896841]
[1733974679792,2.55474,3914.3,3913.4,1.59896841]
[1733974679793,2.55474,3914.3,3913.5,1.32188732]
[1733974679937,1.103773,3914.5,3913.5,1.59896841]
[1733974679938,3.658383,3914.5,3913.5,1.59896841]
[1733974680135,3.6553053,3914.5,3913.5,5.56442113]
[1733974680340,0.02787311,3914.4,3913.6,6.37854445]
[1733974680571,0.02787311,3914.4,3913.7,2.20301225]
[1733974680841,0.02787311,3914.4,3913.8,2.20301225]
[1733974681187,0.7681223,3914.5,3913.9,2.20301225]
[1733974681391,0.7681223,3914.5,3914.0,0.8812049]
[1733974681543,0.7681223,3914.5,3913.5,1.59896841]
[1733974681877,0.02787311,3914.4,3913.6,1.32167055]
[1733974682079,0.02787311,3914.4,3913.6,5.56395971]
[1733974682282,0.02787311,3914.4,3913.7,2.20278425]
[1733974682589,0.02787311,3914.4,3913.8,2.20278425]
[1733974682902,0.02787311,3914.4,3913.9,2.20278425]
[1733974683103,0.02787311,3914.4,3913.6,1.59896841]
[1733974683104,0.02787311,3914.4,3914.0,2.20259358]
[1733974683391,0.7681223,3914.5,3913.5,1.59896841]
[1733974683536,2.88692923,3914.4,3913.6,2.20237255]
[1733974683740,2.91493491,3914.4,3913.7,2.20237255]
[1733974683984,2.91493491,3914.4,3913.8,2.20237255]
[1733974684197,2.91493491,3914.4,3913.9,0.88094902]
[1733974684503,0.27052353,3914.3,3913.4,1.59896841]
[1733974684793,0.815,3913.2,3912.8,1.59896841]
[1733974684954,0.815,3913.2,3912.9,0.88116026]
[1733974685160,0.815,3913.2,3912.4,1.59896841]
[1733974685357,0.02764053,3913.1,3912.5,2.20300102]
[1733974685587,0.02764053,3913.1,3912.6,2.20300102]
[1733974685799,0.02764053,3913.1,3912.2,1.59896841]
[1733974686004,0.815,3913.2,3912.3,2.20327903]
[1733974686005,2.55559,3913.0,3912.3,2.20327903]
[1733974686140,2.55575,3912.8,3912.4,2.20327903]
[1733974686349,2.55575,3912.8,3912.1,0.13087145]
[1733974686590,0.02707944,3912.7,3912.2,2.20332998]
[1733974686804,3.37086,3912.6,3911.8,1.022375]
[1733974687092,0.7621,3912.4,3911.3,1.59896841]
[1733974687256,0.7621,3911.5,3911.4,2.20383208]
[1733974687596,0.7621,3911.5,3910.9,2.11883937]
[1733974687597,0.78850135,3911.5,3910.9,1.59896841]
[1733974688094,0.78850135,3911.5,3911.0,5.56534812]
[1733974688397,0.7621,3912.1,3911.3,1.59896841]
[1733974688604,0.7621,3912.1,3911.4,2.20354428]
[1733974688737,0.7621,3912.1,3911.5,2.20354428]
[1733974688943,0.7621,3912.1,3911.6,0.88137633]
[1733974689143,0.7621,3911.6,3911.0,1.06598424]
[1733974689462,0.03196143,3911.5,3910.7,1.06598424]
[1733974689718,2.55669,3911.3,3910.3,1.06598424]
[1733974689860,2.55697,3910.9,3910.4,2.2032465]
[1733974690078,2.55697,3910.9,3910.5,0.88128123]
[1733974690261,0.02489357,3910.8,3910.2,1.06598424]
[1733974690460,0.02489357,3910.8,3910.3,1.32187806]
[1733974690784,0.02489357,3910.8,3909.7,0.90313955]
[1733974690785,0.02489357,3910.8,3910.1,1.06598424]
[1733974690986,0.02489357,3910.8,3910.2,2.46872149]
[1733974691161,2.55697,3910.9,3910.2,0.26649526]
[1733974691362,2.55697,3910.9,3910.3,0.88086187]
[1733974691558,0.03196451,3911.7,3909.9,1.06598424]
[1733974691889,0.02489357,3910.8,3910.0,3.26707845]
[1733974692202,0.03196451,3911.7,3910.1,2.20109421]
[1733974692343,2.55692,3911.0,3910.2,0.88047108]
[1733974692697,0.7621,3910.9,3909.8,4.06598424]
[1733974692844,0.78614407,3910.9,3909.9,2.20028208]
[1733974693046,0.78614407,3910.9,3910.0,0.88011283]
[1733974693358,0.7621,3910.2,3909.4,2.08895624]
[1733974693700,0.03196941,3910.1,3909.1,1.06598424]
[1733974693993,0.03196941,3910.1,3908.8,3.91466837]
[1733974693994,0.7621,3910.2,3909.2,0.26649526]
[1733974694171,0.7621,3910.2,3909.0,1.06598424]
[1733974694373,0.02345134,3910.1,3909.1,2.11278176]
[1733974694693,0.02345134,3910.1,3909.2,2.9655643]
[1733974694854,0.7621,3910.2,3909.3,2.1981543]
[1733974695042,0.7621,3910.2,3909.2,0.76741]
[1733974695043,0.7621,3910.2,3909.4,0.87926172]
[1733974695244,0.02326874,3910.1,3909.5,0.2712656]
[1733974695675,0.02326874,3910.1,3909.2,0.76741]
[1733974695870,0.02326874,3910.1,3909.3,0.87872494]
[1733974696102,0.7621,3910.2,3909.3,0.87872494]
[1733974696248,0.02325549,3910.0,3909.3,0.87872494]
[1733974696447,0.02326874,3910.1,3909.3,0.87872494]
[1733974696644,0.02324225,3909.9,3909.4,0.17744444]
[1733974696888,0.02325549,3910.0,3909.4,0.17744444]
[1733974697091,0.7621,3910.2,3909.4,0.94481444]
[1733974697730,0.02326874,3910.1,3909.5,0.02557429]
[1733974698236,0.7621,3911.0,3909.5,0.02557429]
[1733974698382,1.093997,3911.0,3909.5,0.02557429]
[1733974698588,0.02336358,3910.9,3909.6,0.7727]
[1733974698849,0.03081869,3910.9,3909.6,0.7727]
[1733974698995,0.7621,3911.0,3909.6,0.7727]
[1733974699340,0.02838881,3910.9,3909.6,0.7727]
[1733974699506,0.7621,3910.8,3909.4,0.17744444]
[1733974699700,3.61031416,3911.5,3909.4,0.17744444]
[1733974699701,0.7621,3910.6,3909.4,0.17744444]
[1733974699924,0.05636134,3910.5,3909.1,0.7727]
[1733974700101,0.7621,3910.1,3908.8,0.8952527]
[1733974700304,0.02837819,3910.0,3908.9,0.87743485]
[1733974700505,0.02837819,3910.0,3908.8,0.8952527]
[1733974701753,0.7621,3910.1,3908.9,0.76747]
[1733974702399,0.7621,3910.1,3908.9,0.79304714]
[1733974702606,0.7621,3910.1,3908.9,0.02557714]
[1733974702806,0.7621,3910.1,3908.8,0.1277727]
[1733974703324,0.7621,3910.1,3908.8,0.8952627]
[1733974703656,2.55756,3910.0,3908.8,0.1277727]
[1733974703822,2.55763,3909.9,3908.8,0.1277727]
[1733974704161,2.55763,3909.9,3908.2,3.0]
[1733974704162,0.79997153,3909.8,3907.8,0.772]
[1733974704453,0.79997153,3909.8,3908.0,1.023343]
[1733974704454,0.768,3909.7,3908.0,1.023343]
[1733974704654,2.55764,3909.9,3907.9,0.76767]
[1733974704655,0.768,3909.2,3907.9,0.76767]
[1733974704802,0.768,3909.2,3907.9,1.791031]
[1733974705007,0.768,3909.2,3907.9,1.023361]
[1733974705253,0.768,3909.2,3908.0,0.96027987]
[1733974705669,0.768,3909.2,3908.3,0.13081205]
[1733974706756,2.55789,3909.5,3908.3,0.13081205]
[1733974708547,2.55728,3910.4,3908.6,0.76752]
[1733974708753,3.61031416,3910.5,3908.6,0.772]
[1733974708988,2.55704,3910.8,3908.6,0.772]
[1733974708989,2.55704,3910.8,3908.7,0.13475792]
[1733974709158,2.55682,3911.1,3908.8,0.55]
[1733974709344,0.23650607,3911.0,3908.9,0.02557446]
[1733974709597,0.23650607,3911.0,3909.4,0.76736]
[1733974709598,2.55697,3910.9,3909.4,0.76736]
[1733974709759,2.55702,3910.8,3909.5,0.02557438]
[1733974709967,2.55717,3910.6,3909.5,0.02557438]
[1733974710289,2.55717,3910.6,3909.1,0.76742]
[1733974710290,0.768,3910.3,3909.1,0.76742]
[1733974710443,0.768,3910.3,3909.0,3.772]
[1733974710645,0.768,3910.7,3909.5,3.772]
[1733974710862,0.768,3911.0,3910.0,0.76726]
[1733974711090,0.768,3911.0,3910.1,0.02557086]
[1733974711601,3.32447,3911.7,3909.7,1.53932]
[1733974711744,0.332447,3911.6,3910.1,0.76724]
[1733974712091,0.768,3911.7,3909.8,3.90295554]
[1733974712342,0.768,3911.7,3910.5,0.76714]
[1733974712790,0.768,3911.7,3910.3,0.772]
[1733974713091,0.768,3911.7,3910.6,0.76714]
[1733974713467,0.768,3911.7,3910.8,0.7671]
[1733974713799,0.768,3911.7,3910.7,0.76711]
[1733974714098,0.768,3911.7,3910.3,0.79756462]
[1733974714301,0.768,3911.7,3910.4,0.15647646]
[1733974714496,0.768,3911.7,3910.7,0.76711]
[1733974715098,0.768,3911.7,3910.7,0.79267463]
[1733974715482,0.768,3911.7,3910.4,0.15647646]
[1733974715483,0.768,3911.7,3910.8,0.76709]
[1733974715650,0.38042667,3912.0,3910.6,0.772]
[1733974716007,0.768,3912.5,3911.6,0.76693]
[1733974716309,0.23788706,3912.4,3911.7,0.79247948]
[1733974716452,0.768,3912.9,3911.7,0.79247948]
[1733974716661,0.23775866,3912.8,3911.8,0.7669]
[1733974716883,0.23775866,3912.7,3911.8,0.7669]
[1733974717204,0.768,3912.9,3911.8,0.7669]
[1733974717411,0.768,3912.9,3911.4,0.79755745]
[1733974717412,0.23764537,3912.8,3911.4,0.79755745]
[1733974717699,0.23765621,3912.7,3911.4,0.92645747]
[1733974717895,0.768,3912.9,3911.4,0.90089816]
[1733974718194,0.44355956,3912.9,3911.4,0.90089816]
[1733974718378,0.44355956,3912.9,3911.7,0.76692]
[1733974718583,0.11120356,3912.9,3911.9,0.76688]
[1733974718901,2.55543,3913.3,3912.0,0.02555616]
[1733974719104,2.55505,3913.9,3912.0,0.02555616]
[1733974719401,2.55526,3913.5,3912.1,1.53884]
[1733974719755,2.55507,3913.8,3912.3,0.7668]
[1733974719968,0.255507,3913.7,3912.6,0.76674]
[1733974720384,0.255507,3913.7,3912.2,0.02555399]
[1733974720385,0.255507,3913.7,3912.2,0.55]
[1733974720583,0.3800496,3914.4,3912.2,0.55]
[1733974720784,2.55505,3913.9,3912.5,0.76676]
[1733974721217,0.768,3913.8,3912.5,0.76676]
[1733974722022,0.768,3913.8,3912.7,0.772]
[1733974723023,2.5552,3913.6,3912.3,0.772]
[1733974723221,0.33232,3913.5,3912.3,0.772]
[1733974723575,0.33232,3913.5,3912.3,1.56435484]
[1733974723777,0.768,3913.8,3912.3,1.5388]
[1733974724022,0.768,3913.8,3912.3,0.772]
[1733974724325,2.5554,3913.3,3912.3,0.772]
[1733974724483,0.768,3913.6,3912.0,0.772]
[1733974724681,0.768,3912.7,3911.6,0.89660601]
[1733974724995,0.768,3912.7,3911.2,0.772]
[1733974724996,0.36432276,3912.6,3911.2,0.772]
[1733974725208,0.03194876,3912.6,3911.2,0.772]
[1733974725412,2.55607,3912.3,3911.2,0.772]
[1733974725608,2.55592,3912.5,3911.2,0.772]
[1733974725978,3.32381,3912.7,3911.2,1.53902]
[1733974726304,0.768,3912.9,3911.3,2.18997521]
[1733974726604,0.768,3912.9,3911.2,0.772]
[1733974726776,2.55592,3912.5,3911.2,0.772]
[1733974727848,0.332353,3912.8,3911.3,0.79256115]
[1733974728052,2.5558,3912.7,3911.3,0.79256115]
[1733974728345,2.888073,3912.8,3911.3,0.79255116]
[1733974728568,2.888073,3912.8,3911.4,1.64375954]
[1733974728847,2.888073,3912.8,3911.5,5.21738626]
[1733974728848,0.332353,3912.8,3911.5,5.21738626]
[1733974729022,2.55553,3913.1,3911.6,2.96382745]
[1733974729348,0.768,3913.3,3911.8,0.772]
[1733974729648,2.55494,3914.0,3911.8,0.772]
[1733974729649,3.32316,3913.7,3912.2,0.76682]
[1733974730149,3.32316,3913.7,3912.3,0.772]
[1733974730453,2.55526,3913.5,3912.3,0.772]
[1733974730608,0.332326,3913.4,3912.3,0.79755484]
[1733974730954,0.768,3913.7,3912.3,1.53879]
[1733974731135,2.55534,3913.4,3912.3,0.772]
[1733974732464,2.55534,3913.4,3912.1,0.76684]
[1733974732465,2.55569,3912.9,3911.8,3.0]
[1733974732643,2.55569,3912.9,3911.7,0.7679]
[1733974732644,2.5557,3912.9,3911.7,0.7679]
[1733974732803,0.25557,3912.8,3911.7,0.7679]
[1733974733006,2.55579,3912.7,3911.7,0.7679]
[1733974733232,0.03194768,3913.1,3911.7,0.7679]
[1733974733599,2.58746768,3913.1,3911.7,0.7679]
[1733974733805,0.23666753,3913.0,3911.7,0.7679]
[1733974734071,0.8265,3913.2,3911.7,0.7679]
[1733974734215,2.55575,3912.8,3911.7,0.7679]
[1733974734615,0.338195,3913.1,3911.7,0.7679]
[1733974734853,2.55572,3912.8,3911.7,0.7679]
[1733974735214,2.55579,3912.7,3911.7,0.7679]
[1733974736364,2.55523,3913.6,3912.2,0.76682]
[1733974736564,0.255523,3913.5,3912.2,0.76682]
[1733974736767,0.8265,3913.9,3912.4,0.7679]
[1733974736972,0.8265,3913.9,3912.5,0.02555252]
[1733974737133,0.8265,3913.9,3912.7,0.76672]
[1733974737319,0.23715079,3914.0,3913.0,3.61031416]
[1733974737524,2.55454,3914.6,3913.3,0.76659]
[1733974737738,2.55454,3914.6,3913.4,0.02554859]
[1733974737971,0.8265,3914.9,3913.4,0.02554859]
[1733974738185,0.8265,3914.9,3913.6,0.76655]
[1733974738379,0.23757871,3914.8,3913.6,0.76655]
[1733974738685,0.8265,3914.9,3913.7,0.76652]
[1733974738686,0.59932569,3914.7,3913.7,0.76652]
[1733974738836,0.8265,3914.9,3913.8,0.76651]
[1733974739236,0.02307287,3914.8,3913.8,0.76651]
[1733974739778,2.57751287,3914.8,3913.5,0.7679]
[1733974740475,2.82415281,3914.7,3913.5,0.7679]
[1733974740687,0.60511181,3914.6,3913.5,0.7679]
[1733974740882,0.02542917,3914.6,3913.5,1.53446]
[1733974741381,0.23785059,3914.5,3913.5,0.7679]
[1733974741527,2.55491,3914.1,3912.6,1.06598424]
[1733974741721,0.02554867,3914.0,3913.1,0.7679]
[1733974741969,0.23781291,3914.5,3913.1,1.53453]
[1733974742173,0.23782731,3914.4,3913.1,1.53453]
[1733974742514,0.51707204,3914.3,3913.2,0.02554968]
[1733974742681,0.27924473,3914.3,3913.1,1.53453]
[1733974742983,0.8265,3914.9,3913.5,0.76655]
[1733974743287,2.55453,3914.7,3913.4,1.31658]
[1733974743426,0.2378633,3914.6,3913.4,1.31658]
[1733974743622,0.23788501,3914.5,3913.3,0.7679]
[1733974743826,0.8265,3914.9,3913.3,0.7679]
[1733974743827,0.26982338,3914.4,3913.3,0.7679]
[1733974744068,0.23791437,3914.3,3913.3,0.7679]
[1733974744254,2.55452,3914.7,3913.4,0.79213968]
[1733974744458,0.23789633,3914.6,3913.5,0.92257397]
[1733974744771,0.23789538,3914.5,3913.6,0.76655]
[1733974744934,2.55442,3914.8,3913.5,0.92257397]
[1733974745134,0.23789438,3914.7,3913.6,0.0255481]
[1733974745427,0.23789438,3914.6,3913.8,0.76651]
[1733974745637,0.38065391,3915.0,3913.9,0.208441]
[1733974745828,0.61856003,3914.9,3913.9,0.208441]
[1733974746026,0.23790612,3914.8,3913.9,0.208441]
[1733974746311,0.23790612,3914.7,3913.9,0.208441]
[1733974746485,0.23790612,3914.6,3913.9,0.208441]
[1733974746680,0.23790612,3914.6,3913.6,0.55]
[1733974746681,0.02562795,3914.6,3914.1,0.7679]
[1733974746885,0.8265,3915.3,3914.1,0.7679]
[1733974747213,3.19826865,3915.2,3914.1,0.7679]
[1733974747371,0.61841144,3915.1,3914.1,0.7679]
[1733974747572,0.23785055,3915.0,3914.1,0.7679]
[1733974747774,0.23785055,3914.9,3914.1,0.7679]
[1733974748015,0.23785055,3914.8,3914.0,0.76647]
[1733974748169,0.02568198,3914.8,3913.9,0.76648]
[1733974748375,3.38061,3915.3,3913.9,0.76648]
[1733974748575,0.02617678,3914.7,3913.9,0.76648]
[1733974748811,0.38036915,3915.1,3913.9,0.76648]
[1733974749011,0.8265,3915.3,3913.6,3.31648]
[1733974749012,0.02536278,3914.6,3913.6,3.31648]
[1733974749215,0.8265,3915.3,3913.6,3.31648]
[1733974749516,0.57569681,3915.2,3914.0,0.76647]
[1733974749825,0.23764381,3915.1,3914.2,3.0]
[1733974749970,0.02465704,3915.1,3914.3,0.02554093]
[1733974750166,0.8161,3916.0,3914.8,0.76631]
[1733974750413,0.23761028,3915.8,3914.2,2.79184895]
[1733974750595,0.02476268,3915.9,3914.9,0.76629]
[1733974750797,2.5535,3916.2,3914.6,3.61031416]
[1733974751004,0.02492612,3915.8,3914.7,1.57643]
[1733974751311,2.5535,3916.2,3914.7,1.57643]
[1733974751614,0.23732339,3916.1,3914.8,0.76631]
[1733974751814,0.8161,3915.9,3914.7,0.8101]
[1733974751974,0.23732339,3915.8,3914.7,0.8101]
[1733974752188,0.2373389,3915.7,3914.7,0.8101]
[1733974752417,0.2373389,3915.6,3914.7,0.8101]
[1733974752581,0.23726443,3915.5,3914.7,0.8101]
[1733974752781,0.31707875,3915.5,3914.7,0.8101]
[1733974753019,0.02534247,3915.4,3914.7,0.8101]
[1733974753671,2.55384,3915.7,3914.7,0.8101]
[1733974753884,0.02526853,3915.3,3914.7,0.8101]
[1733974754114,2.55384,3915.7,3914.7,0.8101]
[1733974754323,0.02525532,3915.2,3914.3,0.8101]
[1733974754527,0.37943224,3915.8,3914.2,2.60194895]
[1733974754729,0.23714513,3915.7,3914.3,2.19237181]
[1733974754927,0.23714513,3915.7,3914.4,2.08181309]
[1733974754928,0.23712679,3915.6,3914.4,2.08181309]
[1733974755087,2.57901235,3915.7,3914.4,0.76639]
[1733974755283,2.57901235,3915.7,3914.5,2.95857771]
[1733974755284,0.02514594,3915.5,3914.5,2.95857771]
[1733974755537,0.02523091,3915.6,3914.6,2.19266351]
[1733974755834,0.23716591,3915.5,3914.2,4.56530856]
[1733974756016,0.0252177,3915.5,3914.3,2.19310168]
[1733974756339,0.0252177,3915.5,3914.4,1.94322491]
[1733974756490,0.0252177,3915.5,3914.5,0.87724067]
[1733974756690,2.55408,3915.3,3914.5,0.87724067]
[1733974756890,0.0252177,3915.5,3914.2,4.33186273]
[1733974756892,2.55397,3915.5,3914.2,3.79887856]
[1733974757127,2.55397,3915.5,3914.3,0.8777307]
[1733974757128,0.02511735,3915.2,3914.3,0.8777307]
[1733974757340,2.55397,3915.5,3914.3,1.6441407]
[1733974757501,2.55397,3915.5,3914.4,0.8777307]
[1733974757705,0.2623684,3915.4,3914.5,0.8101]
[1733974757895,2.55416,3915.2,3914.5,0.6878307]
[1733974758403,2.55416,3915.2,3914.2,2.60194895]
[1733974758404,0.02510414,3915.1,3914.2,2.60194895]
[1733974758619,0.8161,3915.1,3913.9,1.72874125]
[1733974758824,0.26924758,3915.0,3913.7,3.0]
[1733974759033,0.26924758,3915.0,3913.5,5.72915353]
[1733974759034,0.23732695,3914.9,3913.6,3.0]
[1733974759206,2.79173695,3914.8,3913.9,3.0]
[1733974759533,2.55441,3914.8,3913.9,3.0]
[1733974759704,0.02507341,3914.7,3913.9,3.0]
[1733974760432,0.02507341,3914.7,3913.9,2.0]
[1733974760637,3.37035,3915.1,3913.9,2.76649]
[1733974760810,0.02474553,3914.6,3913.9,2.76649]
[1733974761004,3.37035,3915.1,3914.0,0.8101]
[1733974761207,0.02473232,3914.5,3913.9,2.57659]
[1733974761410,2.55384,3915.7,3913.9,2.57659]
[1733974761411,0.8187,3915.6,3914.3,0.76641]
[1733974761723,0.0247191,3914.4,3914.3,1.31641]
[1733974761912,0.8309,3915.9,3914.4,0.55]
[1733974762108,0.23741732,3915.8,3914.9,2.82932573]
[1733974762328,0.02388679,3915.8,3914.9,1.82932573]
[1733974762512,0.34084668,3915.8,3914.9,1.82932573]
[1733974763140,0.02387359,3915.7,3915.1,0.76625]
[1733974763445,2.82932573,3917.6,3915.6,3.55]
[1733974763446,2.55263,3917.6,3915.6,3.55]
[1733974763744,0.23743049,3917.5,3916.6,0.76595]
[1733974763947,0.8309,3918.1,3916.2,2.12538048]
[1733974763948,0.41173941,3918.0,3916.2,2.12538048]
[1733974764112,2.55273,3917.4,3916.2,3.88124719]
[1733974764313,1.086173,3917.3,3916.1,0.803]
[1733974764823,1.086173,3917.3,3916.1,0.76606]